[Event "Titled Tuesday Blitz May 4 2021"]
[White "Novikov, Evgenij"]
[Black "volunteers1998"]
[WhiteFideId "4125380"]
[WhiteElo "2242"]
[BlackElo "2226"]
[Result "1-0"]
[Round "09"]
[TimeControl "180+1"]
[Date "2021.05.04"]
[WhiteClock "0:00:03"]
[BlackClock "0:00:01"]

1. c4 {[%clk 0:03:00]}  f5 {[%clk 0:02:57]} 2. g4 {[%clk 0:02:59]}  fxg4 {[%clk 0:02:55]} 3. h3 {[%clk 0:02:56]}  d6 {[%clk 0:02:52]} 4. hxg4 {[%clk 0:02:56]}  Bxg4 {[%clk 0:02:50]} 5. Qb3 {[%clk 0:02:47]}  Qc8 {[%clk 0:02:44]} 6. Bh3 {[%clk 0:02:39]}  Bxh3 {[%clk 0:02:38]} 7. Nxh3 {[%clk 0:02:38]}  Nc6 {[%clk 0:02:36]} 8. Ng5 {[%clk 0:02:32]}  Nf6 {[%clk 0:02:23]} 9. Qg3 {[%clk 0:01:42]}  e5 {[%clk 0:02:17]} 10. Nxh7 {[%clk 0:01:32]}  Rxh7 {[%clk 0:02:06]} 11. Rxh7 {[%clk 0:01:29]}  Nxh7 {[%clk 0:02:03]} 12. Qg6+ {[%clk 0:01:30]}  Kd8 {[%clk 0:02:01]} 13. Qxh7 {[%clk 0:01:31]}  Qg4 {[%clk 0:01:57]} 14. Kf1 {[%clk 0:00:38]}  Kd7 {[%clk 0:01:52]} 15. Nc3 {[%clk 0:00:31]}  Re8 {[%clk 0:01:45]} 16. d3 {[%clk 0:00:28]}  Be7 {[%clk 0:01:38]} 17. Be3 {[%clk 0:00:20]}  Kc8 {[%clk 0:01:31]} 18. Rc1 {[%clk 0:00:20]}  Kb8 {[%clk 0:01:24]} 19. Ke1 {[%clk 0:00:20]}  Bg5 {[%clk 0:01:15]} 20. Kd2 {[%clk 0:00:15]}  Bxe3+ {[%clk 0:01:10]} 21. fxe3 {[%clk 0:00:16]}  Rf8 {[%clk 0:01:07]} 22. Nd5 {[%clk 0:00:13]}  Qd7 {[%clk 0:00:52]} 23. Rg1 {[%clk 0:00:12]}  Rf7 {[%clk 0:00:49]} 24. Qg8+ {[%clk 0:00:12]}  Nd8 {[%clk 0:00:46]} 25. b3 {[%clk 0:00:12]}  c6 {[%clk 0:00:41]} 26. Nc3 {[%clk 0:00:12]}  Kc7 {[%clk 0:00:39]} 27. Ne4 {[%clk 0:00:12]}  Ne6 {[%clk 0:00:37]} 28. Qa8 {[%clk 0:00:10]}  a6 {[%clk 0:00:33]} 29. Rh1 {[%clk 0:00:11]}  d5 {[%clk 0:00:29]} 30. cxd5 {[%clk 0:00:08]}  cxd5 {[%clk 0:00:27]} 31. Rc1+ {[%clk 0:00:07]}  Kb6 {[%clk 0:00:22]} 32. Qb8 {[%clk 0:00:07]}  dxe4 {[%clk 0:00:20]} 33. Qxe5 {[%clk 0:00:07]}  exd3 {[%clk 0:00:16]} 34. exd3 {[%clk 0:00:08]}  Rf2+ {[%clk 0:00:14]} 35. Ke1 {[%clk 0:00:08]}  Rxa2 {[%clk 0:00:12]} 36. d4 {[%clk 0:00:06]}  Ra5 {[%clk 0:00:06]} 37. Qe4 {[%clk 0:00:04]}  Qd5 {[%clk 0:00:05]} 38. Qc2 {[%clk 0:00:03]}  Ka7 {[%clk 0:00:03]} 39. Qc4 {[%clk 0:00:02]}  Nc5 {[%clk 0:00:03]} 40. Qxd5 {[%clk 0:00:02]}  Nd3+ {[%clk 0:00:02]} 41. Kd2 {[%clk 0:00:02]}  Rxd5 {[%clk 0:00:03]} 42. Kxd3 {[%clk 0:00:03]}  g5 {[%clk 0:00:03]} 43. Rg1 {[%clk 0:00:03]}  b5 {[%clk 0:00:01]} 44. e4 {[%clk 0:00:03]} 1-0


[Site "https://www.chess.com"]

[Event "Titled Tuesday Blitz May 4 2021"]
[White "Pajeken, Jakob Leon"]
[Black "Carrasco Miranda, Andres"]
[WhiteFideId "12942839"]
[BlackFideId "3405990"]
[WhiteElo "2024"]
[BlackElo "2177"]
[Result "1-0"]
[Round "09"]
[TimeControl "180+1"]
[Date "2021.05.04"]
[WhiteClock "0:02:29"]
[BlackClock "0:02:27"]

1. d4 {[%clk 0:02:57]}  Nf6 {[%clk 0:02:59]} 2. Nf3 {[%clk 0:02:58]}  g6 {[%clk 0:02:59]} 3. g3 {[%clk 0:02:59]}  Bg7 {[%clk 0:03:00]} 4. Bg2 {[%clk 0:03:00]}  O-O {[%clk 0:03:00]} 5. O-O {[%clk 0:03:01]}  c5 {[%clk 0:03:01]} 6. dxc5 {[%clk 0:02:59]}  Na6 {[%clk 0:03:00]} 7. Be3 {[%clk 0:02:58]}  Qa5 {[%clk 0:02:49]} 8. c3 {[%clk 0:02:50]}  b6 {[%clk 0:02:44]} 9. b4 {[%clk 0:02:47]}  Qb5 {[%clk 0:02:43]} 10. a4 {[%clk 0:02:44]}  Qc4 {[%clk 0:02:39]} 11. Nfd2 {[%clk 0:02:43]}  Qe6 {[%clk 0:02:34]} 12. Bxa8 {[%clk 0:02:40]}  bxc5 {[%clk 0:02:34]} 13. b5 {[%clk 0:02:37]}  Nc7 {[%clk 0:02:33]} 14. Bg2 {[%clk 0:02:35]}  Ng4 {[%clk 0:02:33]} 15. Bxc5 {[%clk 0:02:33]}  d6 {[%clk 0:02:33]} 16. Bxa7 {[%clk 0:02:32]}  Qf5 {[%clk 0:02:29]} 17. e4 {[%clk 0:02:30]}  Qh5 {[%clk 0:02:27]} 18. h3 {[%clk 0:02:29]} 1-0


[Site "https://www.chess.com"]

[Event "Titled Tuesday Blitz May 4 2021"]
[White "Pantzar, Milton"]
[Black "Jian, Alex"]
[WhiteFideId "1721003"]
[BlackFideId "30901022"]
[WhiteElo "2323"]
[BlackElo "2084"]
[Result "1-0"]
[Round "09"]
[TimeControl "180+1"]
[Date "2021.05.04"]
[WhiteClock "0:01:18"]
[BlackClock "0:01:22"]

1. c4 {[%clk 0:03:00]}  e6 {[%clk 0:03:00]} 2. Nf3 {[%clk 0:02:57]}  d5 {[%clk 0:02:59]} 3. d4 {[%clk 0:02:56]}  Nf6 {[%clk 0:02:59]} 4. Bg5 {[%clk 0:02:54]}  Be7 {[%clk 0:02:59]} 5. e3 {[%clk 0:02:54]}  O-O {[%clk 0:02:58]} 6. Qc2 {[%clk 0:02:49]}  h6 {[%clk 0:02:58]} 7. Bxf6 {[%clk 0:02:49]}  Bxf6 {[%clk 0:02:59]} 8. Nc3 {[%clk 0:02:48]}  c6 {[%clk 0:02:44]} 9. h4 {[%clk 0:02:46]}  Nd7 {[%clk 0:02:42]} 10. g4 {[%clk 0:02:44]}  g6 {[%clk 0:02:35]} 11. g5 {[%clk 0:02:42]}  hxg5 {[%clk 0:02:28]} 12. hxg5 {[%clk 0:02:42]}  Bxg5 {[%clk 0:02:20]} 13. Nxg5 {[%clk 0:02:43]}  Qxg5 {[%clk 0:02:20]} 14. O-O-O {[%clk 0:02:44]}  b6 {[%clk 0:01:51]} 15. cxd5 {[%clk 0:02:41]}  cxd5 {[%clk 0:01:49]} 16. Bd3 {[%clk 0:02:41]}  Kg7 {[%clk 0:01:43]} 17. Rdg1 {[%clk 0:02:40]}  Qf6 {[%clk 0:01:43]} 18. f4 {[%clk 0:02:10]}  Bb7 {[%clk 0:01:41]} 19. Bb5 {[%clk 0:01:30]}  Rad8 {[%clk 0:01:34]} 20. Bxd7 {[%clk 0:01:19]}  Rxd7 {[%clk 0:01:30]} 21. Qh2 {[%clk 0:01:19]}  Rg8 {[%clk 0:01:22]} 22. Qh6# {[%clk 0:01:18]} 1-0


[Site "https://www.chess.com"]

[Event "Titled Tuesday Blitz May 4 2021"]
[White "Pasti, Aron"]
[Black "Kiseljova, Marya"]
[WhiteFideId "785857"]
[BlackFideId "4155009"]
[WhiteElo "2082"]
[BlackElo "1797"]
[Result "1/2-1/2"]
[Round "09"]
[TimeControl "180+1"]
[Date "2021.05.04"]
[WhiteClock "0:00:13"]
[BlackClock "0:00:11"]

1. e4 {[%clk 0:03:00]}  c5 {[%clk 0:03:00]} 2. Nf3 {[%clk 0:03:00]}  Nc6 {[%clk 0:03:00]} 3. d4 {[%clk 0:03:00]}  cxd4 {[%clk 0:03:01]} 4. Nxd4 {[%clk 0:03:01]}  g6 {[%clk 0:03:01]} 5. c4 {[%clk 0:03:01]}  Bg7 {[%clk 0:03:00]} 6. Be3 {[%clk 0:03:02]}  d6 {[%clk 0:02:58]} 7. Nc3 {[%clk 0:03:01]}  Nf6 {[%clk 0:02:58]} 8. Be2 {[%clk 0:03:00]}  O-O {[%clk 0:02:57]} 9. O-O {[%clk 0:02:59]}  Bd7 {[%clk 0:02:57]} 10. f4 {[%clk 0:02:59]}  Nxd4 {[%clk 0:02:56]} 11. Bxd4 {[%clk 0:02:59]}  Bc6 {[%clk 0:02:56]} 12. Bf3 {[%clk 0:02:57]}  a5 {[%clk 0:02:54]} 13. e5 {[%clk 0:02:57]}  dxe5 {[%clk 0:02:47]} 14. fxe5 {[%clk 0:02:57]}  Bxf3 {[%clk 0:02:42]} 15. Rxf3 {[%clk 0:02:51]}  Ng4 {[%clk 0:02:39]} 16. Rd3 {[%clk 0:02:49]}  Qc8 {[%clk 0:02:29]} 17. Nd5 {[%clk 0:02:38]}  Qxc4 {[%clk 0:02:08]} 18. Nb6 {[%clk 0:02:14]}  Qe6 {[%clk 0:02:00]} 19. Nxa8 {[%clk 0:02:07]}  Rxa8 {[%clk 0:02:01]} 20. Qb3 {[%clk 0:01:36]}  Qxb3 {[%clk 0:01:46]} 21. axb3 {[%clk 0:01:37]}  Bxe5 {[%clk 0:01:46]} 22. Bxe5 {[%clk 0:01:36]}  Nxe5 {[%clk 0:01:46]} 23. Rd5 {[%clk 0:01:34]}  Nc6 {[%clk 0:01:44]} 24. Rd7 {[%clk 0:01:29]}  Rb8 {[%clk 0:01:33]} 25. Kf2 {[%clk 0:01:13]}  h5 {[%clk 0:01:30]} 26. Rc1 {[%clk 0:01:05]}  Kg7 {[%clk 0:01:24]} 27. Rc5 {[%clk 0:01:02]}  Kf6 {[%clk 0:01:22]} 28. Rb5 {[%clk 0:01:01]}  b6 {[%clk 0:01:09]} 29. Rc7 {[%clk 0:00:59]}  Nd4 {[%clk 0:01:07]} 30. Rd5 {[%clk 0:00:50]}  Nxb3 {[%clk 0:01:06]} 31. Rdd7 {[%clk 0:00:49]}  Re8 {[%clk 0:01:03]} 32. Rc6+ {[%clk 0:00:48]}  Kg7 {[%clk 0:00:48]} 33. Rxb6 {[%clk 0:00:47]}  Nc5 {[%clk 0:00:46]} 34. Rd5 {[%clk 0:00:41]}  Ne4+ {[%clk 0:00:42]} 35. Ke3 {[%clk 0:00:39]}  Nd6 {[%clk 0:00:40]} 36. Kd3 {[%clk 0:00:32]}  Ra8 {[%clk 0:00:35]} 37. Kd4 {[%clk 0:00:27]}  a4 {[%clk 0:00:31]} 38. Kc3 {[%clk 0:00:22]}  a3 {[%clk 0:00:27]} 39. bxa3 {[%clk 0:00:21]}  Rxa3+ {[%clk 0:00:27]} 40. Rb3 {[%clk 0:00:20]}  Ra2 {[%clk 0:00:26]} 41. Rb2 {[%clk 0:00:20]}  Rxb2 {[%clk 0:00:21]} 42. Kxb2 {[%clk 0:00:21]}  Nc4+ {[%clk 0:00:21]} 43. Kc3 {[%clk 0:00:20]}  Ne3 {[%clk 0:00:20]} 44. Rd2 {[%clk 0:00:19]}  Nf5 {[%clk 0:00:18]} 45. Kd3 {[%clk 0:00:18]}  Kf6 {[%clk 0:00:17]} 46. Ke4 {[%clk 0:00:18]}  Nd6+ {[%clk 0:00:17]} 47. Kf3 {[%clk 0:00:17]}  Nf5 {[%clk 0:00:16]} 48. Ra2 {[%clk 0:00:16]}  e6 {[%clk 0:00:16]} 49. Ra4 {[%clk 0:00:14]}  g5 {[%clk 0:00:15]} 50. Ra5 {[%clk 0:00:14]}  g4+ {[%clk 0:00:14]} 51. Kf4 {[%clk 0:00:13]}  Kg6 {[%clk 0:00:11]} 1/2-1/2


[Site "https://www.chess.com"]

[Event "Titled Tuesday Blitz May 4 2021"]
[White "PattyCastillo"]
[Black "Shankovskyi, Andrii"]
[BlackFideId "14121565"]
[WhiteElo "2027"]
[BlackElo "2269"]
[Result "1-0"]
[Round "09"]
[TimeControl "180+1"]
[Date "2021.05.04"]
[WhiteClock "0:00:38"]
[BlackClock "0:00:02"]

1. d4 {[%clk 0:03:00]}  e6 {[%clk 0:02:51]} 2. Nf3 {[%clk 0:03:00]}  d5 {[%clk 0:02:50]} 3. e3 {[%clk 0:03:00]}  Nf6 {[%clk 0:02:49]} 4. Bd3 {[%clk 0:03:00]}  Bd6 {[%clk 0:02:47]} 5. O-O {[%clk 0:02:58]}  O-O {[%clk 0:02:47]} 6. b3 {[%clk 0:02:58]}  c5 {[%clk 0:02:47]} 7. Bb2 {[%clk 0:02:58]}  Nc6 {[%clk 0:02:43]} 8. Nbd2 {[%clk 0:02:58]}  Bd7 {[%clk 0:02:40]} 9. a3 {[%clk 0:02:57]}  b6 {[%clk 0:02:37]} 10. Ne5 {[%clk 0:02:57]}  cxd4 {[%clk 0:02:18]} 11. exd4 {[%clk 0:02:56]}  Qc7 {[%clk 0:02:14]} 12. Qe2 {[%clk 0:02:47]}  Rac8 {[%clk 0:01:46]} 13. Rac1 {[%clk 0:02:44]}  Rfe8 {[%clk 0:01:44]} 14. c4 {[%clk 0:02:42]}  Bxe5 {[%clk 0:01:38]} 15. dxe5 {[%clk 0:02:41]}  dxc4 {[%clk 0:01:30]} 16. bxc4 {[%clk 0:02:33]}  Nd5 {[%clk 0:00:38]} 17. cxd5 {[%clk 0:02:30]}  exd5 {[%clk 0:00:39]} 18. Nf3 {[%clk 0:01:59]}  Qb8 {[%clk 0:00:35]} 19. Ng5 {[%clk 0:01:42]}  h6 {[%clk 0:00:27]} 20. Qh5 {[%clk 0:01:32]}  hxg5 {[%clk 0:00:18]} 21. Qh7+ {[%clk 0:01:30]}  Kf8 {[%clk 0:00:15]} 22. Qh8+ {[%clk 0:01:26]}  Ke7 {[%clk 0:00:16]} 23. Qxg7 {[%clk 0:01:26]}  Rg8 {[%clk 0:00:15]} 24. Qf6+ {[%clk 0:01:25]}  Ke8 {[%clk 0:00:15]} 25. Rfe1 {[%clk 0:01:14]}  Be6 {[%clk 0:00:14]} 26. Bb5 {[%clk 0:01:14]}  Qb7 {[%clk 0:00:11]} 27. Rc2 {[%clk 0:01:06]}  a6 {[%clk 0:00:11]} 28. Be2 {[%clk 0:00:55]}  b5 {[%clk 0:00:10]} 29. Rec1 {[%clk 0:00:54]}  Qd7 {[%clk 0:00:07]} 30. Bh5 {[%clk 0:00:53]}  Rc7 {[%clk 0:00:02]} 31. h3 {[%clk 0:00:52]}  Rc8 {[%clk 0:00:02]} 32. Qf3 {[%clk 0:00:47]}  Rc7 {[%clk 0:00:02]} 33. Bg4 {[%clk 0:00:39]}  Rc8 {[%clk 0:00:02]} 34. Bxe6 {[%clk 0:00:39]}  Qxe6 {[%clk 0:00:02]} 35. Rd1 {[%clk 0:00:38]} 1-0


[Site "https://www.chess.com"]

[Event "Titled Tuesday Blitz May 4 2021"]
[White "Peralta, Eduardo"]
[Black "Klimkowski, Jan"]
[WhiteFideId "3700062"]
[BlackFideId "21856222"]
[WhiteElo "2205"]
[BlackElo "1903"]
[Result "0-1"]
[Round "09"]
[TimeControl "180+1"]
[Date "2021.05.04"]
[WhiteClock "0:00:09"]
[BlackClock "0:00:18"]

1. d4 {[%clk 0:03:00]}  Nf6 {[%clk 0:02:59]} 2. c4 {[%clk 0:03:00]}  e6 {[%clk 0:03:00]} 3. Nf3 {[%clk 0:02:59]}  Bb4+ {[%clk 0:03:00]} 4. Bd2 {[%clk 0:02:59]}  Qe7 {[%clk 0:03:00]} 5. g3 {[%clk 0:02:58]}  Bxd2+ {[%clk 0:02:59]} 6. Nbxd2 {[%clk 0:02:59]}  d6 {[%clk 0:02:57]} 7. Bg2 {[%clk 0:03:00]}  O-O {[%clk 0:02:57]} 8. O-O {[%clk 0:03:01]}  e5 {[%clk 0:02:56]} 9. e4 {[%clk 0:02:57]}  Bg4 {[%clk 0:02:56]} 10. d5 {[%clk 0:02:55]}  a5 {[%clk 0:02:55]} 11. h3 {[%clk 0:02:54]}  Bxf3 {[%clk 0:02:54]} 12. Qxf3 {[%clk 0:02:46]}  Na6 {[%clk 0:02:54]} 13. Qc3 {[%clk 0:02:42]}  Nc5 {[%clk 0:02:54]} 14. Rae1 {[%clk 0:02:41]}  Nfd7 {[%clk 0:02:51]} 15. f4 {[%clk 0:02:39]}  Kh8 {[%clk 0:02:38]} 16. b3 {[%clk 0:02:38]}  Qf6 {[%clk 0:02:27]} 17. Qe3 {[%clk 0:02:22]}  exf4 {[%clk 0:02:14]} 18. gxf4 {[%clk 0:02:20]}  Rae8 {[%clk 0:02:09]} 19. Kh2 {[%clk 0:02:15]}  Qb2 {[%clk 0:02:07]} 20. a4 {[%clk 0:01:55]}  f5 {[%clk 0:02:01]} 21. Rb1 {[%clk 0:01:44]}  Qf6 {[%clk 0:01:50]} 22. Rbe1 {[%clk 0:01:19]}  fxe4 {[%clk 0:01:49]} 23. Nxe4 {[%clk 0:01:15]}  Nxe4 {[%clk 0:01:49]} 24. Bxe4 {[%clk 0:01:15]}  Nc5 {[%clk 0:01:49]} 25. Qf3 {[%clk 0:01:12]}  Qb2+ {[%clk 0:01:48]} 26. Rf2 {[%clk 0:01:10]}  Qxb3 {[%clk 0:01:48]} 27. Re3 {[%clk 0:00:32]}  Qb6 {[%clk 0:01:46]} 28. Rfe2 {[%clk 0:00:31]}  h6 {[%clk 0:01:38]} 29. Qg4 {[%clk 0:00:23]}  Nxe4 {[%clk 0:01:07]} 30. Rxe4 {[%clk 0:00:23]}  Rxe4 {[%clk 0:01:06]} 31. Rxe4 {[%clk 0:00:24]}  Qf2+ {[%clk 0:00:43]} 32. Kh1 {[%clk 0:00:24]}  Rf7 {[%clk 0:00:22]} 33. Re8+ {[%clk 0:00:13]}  Kh7 {[%clk 0:00:22]} 34. Re4 {[%clk 0:00:13]}  g5 {[%clk 0:00:18]} 35. fxg5 {[%clk 0:00:10]}  Qf1+ {[%clk 0:00:18]} 36. Qg1 {[%clk 0:00:09]}  Qxh3+ {[%clk 0:00:18]} 37. Qh2 {[%clk 0:00:09]}  Rf1# {[%clk 0:00:18]} 0-1


[Site "https://www.chess.com"]

[Event "Titled Tuesday Blitz May 4 2021"]
[White "Petrova, Irina"]
[Black "Shukhman, Anna"]
[WhiteFideId "14124122"]
[BlackFideId "54180058"]
[WhiteElo "2022"]
[BlackElo "1628"]
[Result "1/2-1/2"]
[Round "09"]
[TimeControl "180+1"]
[Date "2021.05.04"]
[WhiteClock "0:00:23"]
[BlackClock "0:00:30"]

1. e4 {[%clk 0:03:00]}  c5 {[%clk 0:02:59]} 2. Nf3 {[%clk 0:03:00]}  e6 {[%clk 0:02:59]} 3. c4 {[%clk 0:03:00]}  d5 {[%clk 0:02:43]} 4. exd5 {[%clk 0:02:58]}  exd5 {[%clk 0:02:43]} 5. cxd5 {[%clk 0:02:58]}  Nf6 {[%clk 0:02:42]} 6. Nc3 {[%clk 0:02:58]}  Nxd5 {[%clk 0:02:41]} 7. Bb5+ {[%clk 0:02:57]}  Nc6 {[%clk 0:02:40]} 8. O-O {[%clk 0:02:54]}  Be7 {[%clk 0:02:36]} 9. Re1 {[%clk 0:02:52]}  Be6 {[%clk 0:02:35]} 10. Ne5 {[%clk 0:02:15]}  Rc8 {[%clk 0:02:12]} 11. Nxd5 {[%clk 0:02:05]}  Bxd5 {[%clk 0:02:06]} 12. Nxc6 {[%clk 0:01:41]}  Bxc6 {[%clk 0:01:56]} 13. Qe2 {[%clk 0:01:37]}  Rc7 {[%clk 0:01:34]} 14. d4 {[%clk 0:01:25]}  O-O {[%clk 0:01:30]} 15. Bf4 {[%clk 0:01:19]}  Bd6 {[%clk 0:01:18]} 16. Bxd6 {[%clk 0:01:14]}  Qxd6 {[%clk 0:01:18]} 17. dxc5 {[%clk 0:01:11]}  Qxc5 {[%clk 0:01:18]} 18. Rac1 {[%clk 0:01:03]}  Qd5 {[%clk 0:01:10]} 19. Bxc6 {[%clk 0:01:01]}  Rxc6 {[%clk 0:01:10]} 20. Rxc6 {[%clk 0:01:00]}  Qxc6 {[%clk 0:01:10]} 21. h3 {[%clk 0:01:00]}  h6 {[%clk 0:01:09]} 22. Qe3 {[%clk 0:00:57]}  a6 {[%clk 0:01:07]} 23. Qb3 {[%clk 0:00:53]}  Rd8 {[%clk 0:00:54]} 24. Re7 {[%clk 0:00:32]}  Qc1+ {[%clk 0:00:53]} 25. Kh2 {[%clk 0:00:32]}  Qf4+ {[%clk 0:00:53]} 26. Qg3 {[%clk 0:00:33]}  Qxg3+ {[%clk 0:00:46]} 27. Kxg3 {[%clk 0:00:33]}  b5 {[%clk 0:00:44]} 28. Ra7 {[%clk 0:00:32]}  Rd2 {[%clk 0:00:42]} 29. Rxa6 {[%clk 0:00:31]}  Rxb2 {[%clk 0:00:41]} 30. Kf3 {[%clk 0:00:31]}  Kf8 {[%clk 0:00:37]} 31. h4 {[%clk 0:00:31]}  Ke7 {[%clk 0:00:36]} 32. g3 {[%clk 0:00:31]}  b4 {[%clk 0:00:35]} 33. Ke3 {[%clk 0:00:29]}  b3 {[%clk 0:00:35]} 34. axb3 {[%clk 0:00:28]}  Rxb3+ {[%clk 0:00:35]} 35. Kf4 {[%clk 0:00:26]}  Rb4+ {[%clk 0:00:34]} 36. Kf3 {[%clk 0:00:26]}  Rb3+ {[%clk 0:00:35]} 37. Kg2 {[%clk 0:00:26]}  h5 {[%clk 0:00:30]} 38. Ra7+ {[%clk 0:00:24]}  Kf6 {[%clk 0:00:29]} 39. Ra6+ {[%clk 0:00:24]}  Ke7 {[%clk 0:00:29]} 40. Ra5 {[%clk 0:00:24]}  g6 {[%clk 0:00:29]} 41. Ra7+ {[%clk 0:00:23]}  Kf6 {[%clk 0:00:29]} 42. Ra6+ {[%clk 0:00:23]}  Kg7 {[%clk 0:00:29]} 43. Ra7 {[%clk 0:00:23]}  Rc3 {[%clk 0:00:29]} 44. Ra6 {[%clk 0:00:23]}  Rb3 {[%clk 0:00:30]} 45. Ra7 {[%clk 0:00:23]}  Rc3 {[%clk 0:00:30]} 46. Ra6 {[%clk 0:00:23]}  Rb3 {[%clk 0:00:30]} 1/2-1/2


[Site "https://www.chess.com"]

[Event "Titled Tuesday Blitz May 4 2021"]
[White "Pichot, Alan"]
[Black "Manolache, Marius"]
[WhiteFideId "110973"]
[BlackFideId "1201530"]
[WhiteElo "2622"]
[BlackElo "2391"]
[Result "0-1"]
[Round "09"]
[TimeControl "180+1"]
[Date "2021.05.04"]
[WhiteClock "0:00:04"]
[BlackClock "0:01:49"]

1. e4 {[%clk 0:01:20]}  c5 {[%clk 0:02:58]} 2. Nf3 {[%clk 0:01:19]}  e6 {[%clk 0:02:58]} 3. d4 {[%clk 0:01:15]}  cxd4 {[%clk 0:02:59]} 4. Nxd4 {[%clk 0:01:15]}  a6 {[%clk 0:02:59]} 5. c4 {[%clk 0:01:15]}  Nf6 {[%clk 0:02:59]} 6. Nc3 {[%clk 0:01:14]}  Qc7 {[%clk 0:02:58]} 7. Be2 {[%clk 0:01:12]}  h5 {[%clk 0:02:58]} 8. h3 {[%clk 0:01:07]}  Be7 {[%clk 0:02:56]} 9. O-O {[%clk 0:01:06]}  Nc6 {[%clk 0:02:52]} 10. Be3 {[%clk 0:01:06]}  Ne5 {[%clk 0:02:49]} 11. Rc1 {[%clk 0:01:04]}  d6 {[%clk 0:02:49]} 12. f4 {[%clk 0:01:03]}  Ng6 {[%clk 0:02:48]} 13. b4 {[%clk 0:00:54]}  b6 {[%clk 0:02:47]} 14. Nd5 {[%clk 0:00:52]}  exd5 {[%clk 0:02:44]} 15. cxd5 {[%clk 0:00:52]}  Qd7 {[%clk 0:02:43]} 16. Qd3 {[%clk 0:00:43]}  Bb7 {[%clk 0:02:37]} 17. Nf5 {[%clk 0:00:41]}  O-O {[%clk 0:02:31]} 18. Bd4 {[%clk 0:00:41]}  Bd8 {[%clk 0:02:28]} 19. g4 {[%clk 0:00:40]}  Re8 {[%clk 0:02:23]} 20. Ng3 {[%clk 0:00:27]}  h4 {[%clk 0:02:21]} 21. Nf5 {[%clk 0:00:20]}  Nxe4 {[%clk 0:02:01]} 22. Nxg7 {[%clk 0:00:19]}  Ng3 {[%clk 0:02:01]} 23. Nxe8 {[%clk 0:00:17]}  Qxe8 {[%clk 0:02:01]} 24. Bf3 {[%clk 0:00:05]}  Nxf4 {[%clk 0:01:55]} 25. Qd2 {[%clk 0:00:06]}  Nfe2+ {[%clk 0:01:55]} 26. Kh2 {[%clk 0:00:05]}  Nxd4 {[%clk 0:01:53]} 27. Qxd4 {[%clk 0:00:04]}  Nxf1+ {[%clk 0:01:52]} 28. Rxf1 {[%clk 0:00:05]}  Qe5+ {[%clk 0:01:52]} 29. Qxe5 {[%clk 0:00:05]}  dxe5 {[%clk 0:01:52]} 30. Rc1 {[%clk 0:00:03]}  Rc8 {[%clk 0:01:51]} 31. Rxc8 {[%clk 0:00:03]}  Bxc8 {[%clk 0:01:50]} 32. Be4 {[%clk 0:00:04]}  Be7 {[%clk 0:01:49]} 33. a3 {[%clk 0:00:04]}  a5 {[%clk 0:01:49]} 0-1


[Site "https://www.chess.com"]

[Event "Titled Tuesday Blitz May 4 2021"]
[White "Piesik, Piotr"]
[Black "Sevian, Samuel"]
[WhiteFideId "1136194"]
[BlackFideId "2040506"]
[WhiteElo "2369"]
[BlackElo "2918"]
[Result "1-0"]
[Round "09"]
[TimeControl "180+1"]
[Date "2021.05.04"]
[WhiteClock "0:01:26"]
[BlackClock "0:00:05"]

1. Nf3 {[%clk 0:03:00]}  Nf6 {[%clk 0:00:11]} 2. g3 {[%clk 0:03:00]}  g6 {[%clk 0:00:11]} 3. Bg2 {[%clk 0:03:00]}  Bg7 {[%clk 0:00:12]} 4. O-O {[%clk 0:02:59]}  O-O {[%clk 0:00:13]} 5. d4 {[%clk 0:02:58]}  d6 {[%clk 0:00:14]} 6. Nbd2 {[%clk 0:02:58]}  Nbd7 {[%clk 0:00:15]} 7. e4 {[%clk 0:02:58]}  e5 {[%clk 0:00:16]} 8. dxe5 {[%clk 0:02:58]}  Nxe5 {[%clk 0:00:15]} 9. Nxe5 {[%clk 0:02:57]}  dxe5 {[%clk 0:00:16]} 10. Qe2 {[%clk 0:02:58]}  Qe7 {[%clk 0:00:17]} 11. b3 {[%clk 0:02:58]}  Rd8 {[%clk 0:00:18]} 12. a4 {[%clk 0:02:57]}  b6 {[%clk 0:00:18]} 13. Bb2 {[%clk 0:02:55]}  Qe8 {[%clk 0:00:19]} 14. Rfd1 {[%clk 0:02:53]}  a5 {[%clk 0:00:19]} 15. Qe1 {[%clk 0:02:43]}  Ba6 {[%clk 0:00:19]} 16. Bf1 {[%clk 0:02:41]}  Bb7 {[%clk 0:00:18]} 17. f3 {[%clk 0:02:40]}  h5 {[%clk 0:00:18]} 18. Nc4 {[%clk 0:02:38]}  Nd7 {[%clk 0:00:18]} 19. Ba3 {[%clk 0:02:32]}  Nf8 {[%clk 0:00:17]} 20. Bh3 {[%clk 0:02:20]}  Ne6 {[%clk 0:00:15]} 21. Rxd8 {[%clk 0:02:16]}  Rxd8 {[%clk 0:00:14]} 22. Bxe6 {[%clk 0:02:16]}  Qxe6 {[%clk 0:00:15]} 23. Rd1 {[%clk 0:02:16]}  Rd7 {[%clk 0:00:13]} 24. Rxd7 {[%clk 0:02:08]}  Qxd7 {[%clk 0:00:13]} 25. Qd2 {[%clk 0:02:09]}  Qe8 {[%clk 0:00:09]} 26. Qd3 {[%clk 0:01:47]}  h4 {[%clk 0:00:09]} 27. Ne3 {[%clk 0:01:45]}  hxg3 {[%clk 0:00:09]} 28. hxg3 {[%clk 0:01:45]}  Bf8 {[%clk 0:00:04]} 29. Bxf8 {[%clk 0:01:42]}  Qxf8 {[%clk 0:00:05]} 30. Ng4 {[%clk 0:01:38]}  Qc5+ {[%clk 0:00:04]} 31. Kg2 {[%clk 0:01:36]}  Kg7 {[%clk 0:00:05]} 32. Qd2 {[%clk 0:01:28]}  Bc8 {[%clk 0:00:05]} 33. Qh6+ {[%clk 0:01:26]}  Kg8 {[%clk 0:00:05]} 34. Nf6# {[%clk 0:01:26]} 1-0


[Site "https://www.chess.com"]

[Event "Titled Tuesday Blitz May 4 2021"]
[White "Pinto, Daniel"]
[Black "Bartel, Michal"]
[WhiteFideId "3303144"]
[BlackFideId "1119257"]
[WhiteElo "1936"]
[BlackElo "2271"]
[Result "1/2-1/2"]
[Round "09"]
[TimeControl "180+1"]
[Date "2021.05.04"]
[WhiteClock "0:00:11"]
[BlackClock "0:01:33"]

1. e4 {[%clk 0:02:59]}  e5 {[%clk 0:02:58]} 2. Nf3 {[%clk 0:02:58]}  Nc6 {[%clk 0:02:55]} 3. d4 {[%clk 0:02:58]}  exd4 {[%clk 0:02:53]} 4. Nxd4 {[%clk 0:02:59]}  g6 {[%clk 0:02:50]} 5. Nxc6 {[%clk 0:02:54]}  bxc6 {[%clk 0:02:51]} 6. Bd3 {[%clk 0:02:52]}  Bg7 {[%clk 0:02:51]} 7. O-O {[%clk 0:02:53]}  Ne7 {[%clk 0:02:51]} 8. Nc3 {[%clk 0:02:48]}  Rb8 {[%clk 0:02:51]} 9. f4 {[%clk 0:02:42]}  d5 {[%clk 0:02:49]} 10. e5 {[%clk 0:02:26]}  c5 {[%clk 0:02:22]} 11. b3 {[%clk 0:02:11]}  c6 {[%clk 0:02:09]} 12. Na4 {[%clk 0:02:05]}  f6 {[%clk 0:02:04]} 13. Nxc5 {[%clk 0:01:27]}  fxe5 {[%clk 0:02:03]} 14. fxe5 {[%clk 0:01:28]}  Bxe5 {[%clk 0:02:02]} 15. Bf4 {[%clk 0:01:19]}  Bd4+ {[%clk 0:02:01]} 16. Kh1 {[%clk 0:01:19]}  Bxc5 {[%clk 0:02:01]} 17. Bxb8 {[%clk 0:01:19]}  Bf5 {[%clk 0:01:56]} 18. Be5 {[%clk 0:01:17]}  O-O {[%clk 0:01:55]} 19. Bxf5 {[%clk 0:01:13]}  Nxf5 {[%clk 0:01:55]} 20. Rf3 {[%clk 0:01:06]}  Qh4 {[%clk 0:01:50]} 21. Qe1 {[%clk 0:00:57]}  Qh5 {[%clk 0:01:42]} 22. Bc3 {[%clk 0:00:37]}  Bd6 {[%clk 0:01:36]} 23. Qe6+ {[%clk 0:00:37]}  Rf7 {[%clk 0:01:32]} 24. Qe8+ {[%clk 0:00:12]}  Rf8 {[%clk 0:01:32]} 25. Qe6+ {[%clk 0:00:12]}  Rf7 {[%clk 0:01:32]} 26. Qe8+ {[%clk 0:00:12]}  Rf8 {[%clk 0:01:33]} 27. Qe6+ {[%clk 0:00:11]} 1/2-1/2


[Site "https://www.chess.com"]